Cogmind - Beta 13 @@@ ROGUE MODE // 2024.04.20 @ 12:31:13 Player: Lunace Result: Destroyed by H-77 Assassin with Coil Gun Performance ------------- Evolutions (7) 3500 Regions Visited (19) 3800 Robots Destroyed (143) 715 Value Destroyed (5855) 5855 Prototype IDs (10) 200 Alien Tech Used (0) 0 Bonus (3703) 3703 TOTAL SCORE: 17773 Bonus ------- High Alert Combat Kills 375 Follower Combat Kills 899 Met Warlord at Base 500 MAIN.C Attacked Warlord 500 Warlord Defense Kills 1270 Scanned by Researcher 500 Friendly Fire -341 Cogmind --------- Core Integrity 0/1300 Matter 300/300 Energy 440/440 System Corruption 29% Temperature Cool (0) Movement Treading (145) Location -3/Testing Parts ------- > --- POWER (2) -------- Particle Reactor > --- PROPULSION (6) --- Advanced Medium Treads Advanced Medium Treads Advanced Medium Treads (fused) Advanced Heavy Treads > --- UTILITY (9) ------ Medium Storage Unit Small Battery Advanced Signal Interpreter Advanced Target Analyzer Improved Armor Integrity Analyzer Precision Energy Filter Experimental Thermal Shield AEGIS Remote Shield > --- WEAPON (4) ------- Gamma Rifle Gamma Rifle Greatsword > --- INVENTORY (10) --- Launcher Loader Long-range Tractor Beam Lance Peak State ------------ > --- POWER ------------ Particle Reactor > --- PROPULSION ------- Advanced Medium Treads Advanced Medium Treads Advanced Medium Treads Advanced Heavy Treads Improved Antigrav System > --- UTILITY ---------- Medium Storage Unit Small Battery Advanced Signal Interpreter Advanced Target Analyzer Improved Armor Integrity Analyzer Precision Energy Filter Experimental Thermal Shield AEGIS Remote Shield Ghost Barrier > --- WEAPON ----------- Gamma Rifle Gamma Rifle Greatsword > --- INVENTORY -------- Launcher Loader Long-range Tractor Beam Lance [Rating: 133] Favorites ----------- Power Micro Fission Core Engine Light Ion Engine Power Core Micro Fission Core Reactor Light Antimatter Reactor Propulsion Titanium Leg Treads Medium Treads Leg Titanium Leg Wheel Centrium Wheel Hover Unit Backup Propulsion III Flight Unit Nuclear Pulse Array Utility Hardened Medium Armor Plating Device Transmission Jammer Storage Medium Storage Unit Processor Advanced Signal Interpreter Hackware Ghost Barrier Protection Hardened Medium Armor Plating Weapon Gauss Rifle Energy Gun Backup Laser III Energy Cannon Vortex Cannon Ballistic Gun Gauss Rifle Ballistic Cannon Linear Accelerator Launcher Long-range Missile Launcher Slashing Weapon Greatsword Piercing Weapon Lance Build | -11 -10 -10 -9 -9 -9 -8 -8 -7 -6 -6 -6 -5 -5 -5 -5 -4 -4 -3 -3 ------- Run | Yrd Mat Min Mat Min Exi Min Mat Fac Fac Was Fac Fac Upp Upp War Pro Fac Res Tes Slots Evolved 14 | . . . 2 . . . 2 2 2 . . 2 . . . . 2 2 . Power 1 | . . . . . . . . . 1 . . . . . . . . . . Propulsion 4 | . . . 1 . . . . 1 . . . . . . . . 2 . . Utility 7 | . . . . . . . 1 1 1 . . 2 . . . . . 2 . Weapon 2 | . . . 1 . . . 1 . . . . . . . . . . . . Parts Attached 188 | 8 5 8 12 . . 1 16 3 11 5 . 9 20 3 19 4 17 27 20 Power 19 | 1 . 2 . . . . 2 . 1 . . 1 2 . 2 . 1 6 1 Engine 5 | 1 . 2 . . . . 1 . 1 . . . . . . . . . . Core 6 | . . . . . . . 1 . . . . 1 2 . 2 . . . . Reactor 8 | . . . . . . . . . . . . . . . . . 1 6 1 Propulsion 42 | 2 2 3 4 . . . 2 1 2 . . 1 4 1 7 . 2 7 4 Treads 7 | . . . . . . . . . . . . . 2 1 . . . 1 3 Leg 27 | 2 2 3 4 . . . 2 1 2 . . . 2 . 7 . . 2 . Wheel 4 | . . . . . . . . . . . . 1 . . . . 1 2 . Hover 2 | . . . . . . . . . . . . . . . . . . 1 1 Flight 2 | . . . . . . . . . . . . . . . . . 1 1 . Utility 75 | 2 2 1 3 . . . 5 2 5 4 . 6 12 2 3 2 9 6 11 Device 34 | 1 . . . . . . 1 1 2 3 . 3 4 . . 1 5 6 7 Storage 9 | 1 2 . . . . . . . . . . . 2 . 2 . . . 2 Processor 9 | . . . . . . . . . . . . 1 2 2 . 1 2 . 1 Hackware 1 | . . . . . . . . . . . . . . . . . . . 1 Protection 22 | . . 1 3 . . . 4 1 3 1 . 2 4 . 1 . 2 . . Artifact . | . . . . . . . . . . . . . . . . . . . . Weapon 52 | 3 1 2 5 . . 1 7 . 3 1 . 1 2 . 7 2 5 8 4 Energy Gun 12 | 2 . . . . . . . . . . . 1 . . 3 2 2 . 2 Energy Cannon 4 | . . . . . . . . . . . . . . . 1 . . 3 . Ballistic Gun 23 | 1 1 2 4 . . 1 7 . 2 1 . . 1 . . . . 3 . Ballistic Cannon 2 | . . . . . . . . . . . . . . . . . 1 1 . Launcher 8 | . . . 1 . . . . . 1 . . . 1 . 3 . 2 . . Special Weapon . | . . . . . . . . . . . . . . . . . . . . Impact Weapon . | . . . . . . . . . . . . . . . . . . . . Slashing Weapon 1 | . . . . . . . . . . . . . . . . . . . 1 Piercing Weapon 2 | . . . . . . . . . . . . . . . . . . 1 1 Special Melee Weapon . | . . . . . . . . . . . . . . . . . . . . Unidentified Prototypes 10 | . . . . . . . . . . 1 . . 1 . 2 . 2 . 4 Parts Lost 53 | . . 1 . . . . . . 2 7 . 5 4 5 . . 1 25 3 Power 8 | . . 1 . . . . . . . . . 2 . 1 . . 1 3 . Propulsion 16 | . . . . . . . . . 1 2 . 2 2 1 . . . 7 1 Utility 17 | . . . . . . . . . . 3 . 1 2 2 . . . 7 2 Weapon 12 | . . . . . . . . . 1 2 . . . 1 . . . 8 . Highest Loss Streak 20 | . . 1 . . . . . . 1 7 . 3 2 5 . . 1 20 2 To Critical Strikes 1 | . . . . . . . . . . . . . . . . . . 1 . Average Slot Usage (%) 84 | . 97 85 99 100 100 99 93 100 97 48 6 55 79 88 91 88 83 80 56 Engine 4 | . 14 14 11 11 11 11 5 7 13 6 . 7 . . . . . . . Core 3 | . . . . . . . 3 . . . . 2 6 9 8 11 5 1 . Reactor 1 | . . . . . . . . . . . . . . . . . 3 5 1 Treads 3 | . . . . . . . . . . . . . 4 10 9 . . . 17 Leg 17 | . 28 28 33 33 33 33 27 30 26 12 . . 5 5 7 23 21 20 . Device 10 | . 11 . . . . . . 7 11 8 6 10 14 21 15 5 9 14 10 Storage 5 | . 14 14 11 11 11 11 9 7 6 3 . . 2 5 5 5 2 . 2 Processor 5 | . . . . . . . . . . . . 1 3 5 17 17 9 9 10 Protection 7 | . . . 10 11 11 11 12 15 11 3 . 4 15 3 . 5 6 6 . Energy Gun 4 | . 2 . . . . . . . . . . 10 11 9 5 5 6 3 2 Ballistic Gun 10 | . 25 28 29 22 22 21 25 23 17 13 . . 4 5 2 . . 3 . Launcher 6 | . . . 3 11 11 11 9 7 8 . . . 3 5 13 11 10 4 . Naked Turns 22 | . . . . . . . . . . 22 . . . . . . . . . Heaviest Build 104 | 13 18 23 33 33 33 33 48 53 67 56 3 29 49 37 91 70 91 104 68 Greatest Support 160 | 20 20 20 51 51 51 51 51 68 68 68 3 16 65 56 81 81 81 131 160 Greatest Overweight (x) 4 | . . 1 . . . . . . . 2 . 1 3 . 1 . 1 4 1 Average Overweight (x) . | . . . . . . . . . . . . . . . . . . . . Largest Inventory Capacity 20 | 8 10 10 10 10 10 10 10 10 10 10 5 5 5 5 20 5 5 5 10 Average Capacity 7 | 6 9 10 10 10 10 10 10 10 10 7 5 5 5 5 10 5 5 5 6 Most Carried 10 | 2 10 10 10 10 10 10 10 10 10 10 5 5 5 5 7 5 5 5 5 Average Carried 5 | 1 6 9 9 10 10 10 9 7 9 7 5 4 3 4 5 5 4 2 4 Final Capacity 10 | 8 10 10 10 10 10 10 10 10 10 5 5 5 5 5 5 5 5 5 10 Final Carried 10 | 2 10 10 10 10 10 10 9 10 10 5 5 4 5 5 5 5 5 5 4 Class Distribution -------------------- 31% | Tank 18% | Mutant 17% | Scavenger-Tank 14% | Scavenger-Skirmisher 7% | Derelict-Skirmisher 3% | Hacker-Mutant Dominant Class ---------------- Mutant | -10/Materials Mutant | -10/Mines Tank | -9/Materials Tank | -9/Mines Tank | -9/Exiles Tank | -8/Mines Tank | -8/Materials Tank | -7/Factory Tank | -6/Factory Mutant | -6/Waste Mutant | -6/Factory Mutant | -5/Factory Tank | -5/Upper Caves Scavenger-Skirmisher | -5/Upper Caves Derelict-Skirmisher | -5/Warlord Scavenger-Skirmisher | -4/Proximity Caves Scavenger-Skirmisher | -4/Factory Scavenger-Tank | -3/Research Hacker-Mutant | -3/Testing Resources | -11 -10 -10 -9 -9 -9 -8 -8 -7 -6 -6 -6 -5 -5 -5 -5 -4 -4 -3 -3 ----------- Run | Yrd Mat Min Mat Min Exi Min Mat Fac Fac Was Fac Fac Upp Upp War Pro Fac Res Tes Matter Collected 4117 | 260 240 112 278 . . 194 336 . 350 . 24 177 479 62 347 112 268 620 258 Remotely 1156 | 110 226 . . . . . . . 113 . . . . . . . 243 464 . Salvage Created 4992 | 55 442 103 218 . . 272 478 . 301 . . 177 774 86 449 266 320 623 428 Parts 273 | 3 24 5 25 . . 10 32 . 22 . . 3 27 2 28 11 24 39 18 Haulers Intercepted 2 | . 1 . . . . . . . . . . . 1 . . . . . . Recyclers Shooed 4 | . . . 1 . . . . . . . . . . . . . 1 1 1 Parts Field Recycled . | . . . . . . . . . . . . . . . . . . . . Retrieved Matter . | . . . . . . . . . . . . . . . . . . . . Parts Self-Destructed 23 | . . . . . . . . . . . . . 9 . . 14 . . . Prevented 26 | . . . . . . . . . . . . . 18 2 . 6 . . . Kills | -11 -10 -10 -9 -9 -9 -8 -8 -7 -6 -6 -6 -5 -5 -5 -5 -4 -4 -3 -3 ------- Run | Yrd Mat Min Mat Min Exi Min Mat Fac Fac Was Fac Fac Upp Upp War Pro Fac Res Tes Combat Hostiles Destroyed 114 | . 9 2 8 . . 10 5 . 9 . . 2 10 1 13 7 20 12 6 Melee 8 | . . . . . . . . . . . . . . . . . . 2 6 Guns 37 | . 9 2 5 . . 4 5 . 2 . . . 1 . . 1 4 4 . Cannons 5 | . . . . . . . . . . . . . . . . . 1 4 . AOE 57 | . . . 3 . . 6 . . 7 . . . 5 . 13 6 15 2 . Classes Destroyed 17 | 1 4 . 3 . . 3 . . 1 . . . . . 4 . 1 . . Worker 8 | . . . 3 . . 1 . . . . . 1 . . . . . 3 . Builder 4 | . . . . . . . . . 2 . . . . . . . 1 1 . Hauler 2 | . 1 . . . . . . . . . . . 1 . . . . . . Recycler 4 | 1 1 . . . . . 2 . . . . . . . . . . . . Mechanic 1 | . . . . . . . . . . . . . . . 1 . . . . Operator 1 | . . . 1 . . . . . . . . . . . . . . . . Watcher 8 | . 1 . 2 . . . 3 . 1 . . . . . . . 1 . . Swarmer 35 | . 3 . 6 . . 3 . . 4 . . . 1 . 1 3 14 . . Saboteur 3 | . . . . . . . . . . . . . . . 3 . . . . Grunt 41 | . 6 2 1 . . 4 3 . 2 . . . 6 . 6 3 3 1 4 Brawler 2 | . . . . . . 1 . . . . . . 1 . . . . . . Duelist 3 | . . . . . . 1 1 . 1 . . . . . . . . . . Sentry 7 | . . . 1 . . . 1 . . . . 2 1 1 . . . 1 . Hunter 7 | . . . . . . 1 . . 2 . . . 1 . 1 . . 2 . Programmer 14 | . . . . . . . . . . . . . . . 1 1 2 8 2 Heavy 1 | . . . . . . . . . . . . . . . . . 1 . . Striker 1 | . . . . . . . . . . . . . . . 1 . . . . Butcher 1 | . . . . . . . . . . . . . . . 1 . . . . Best Kill Streak 13 | 1 3 1 7 . . 4 3 . 4 . . 1 3 1 13 3 10 5 2 Combat Bots Only 12 | . 3 1 3 . . 3 3 . 4 . . 1 3 1 12 3 10 3 2 Max Kills in Single Turn 4 | 1 1 1 3 . . 3 2 . 4 . . 1 3 1 4 3 4 2 1 Gunslinging 2 | . . . 2 . . . . . . . . . . . . . . . . Exploded 4 | . . . 1 . . 2 . . 4 . . . 3 . 4 3 4 1 . Melee 1 | . . . . . . . . . . . . . . . . . . 1 1 Uniques/NPCs Destroyed . | . . . . . . . . . . . . . . . . . . . . Combat | -11 -10 -10 -9 -9 -9 -8 -8 -7 -6 -6 -6 -5 -5 -5 -5 -4 -4 -3 -3 -------- Run | Yrd Mat Min Mat Min Exi Min Mat Fac Fac Was Fac Fac Upp Upp War Pro Fac Res Tes Hostile Shots Fired 1028 | . 35 20 15 . . 36 21 2 93 14 15 33 64 10 24 18 47 481 100 Missed 359 | . 11 5 3 . . 15 7 2 27 . 7 10 22 3 13 4 22 183 25 Damage Taken 11593 | . 262 215 168 . . 400 234 . 992 654 55 545 886 267 116 256 639 4666 1238 Core 2474 | . 69 82 15 . . 21 . . 109 297 55 138 117 24 . 53 179 1167 148 Absorbed by Shields 435 | . . . . . . . . . 288 . . . . . . . . 147 . Redirected to Shielding 95 | . . . . . . . . . . . . . 36 59 . . . . . Ignored by Resistances 192 | . . . . . . . . . . . . . . . . . . . 192 Regen/Repaired (Parts) 229 | . . . . . . . 103 . . . . . . . 126 . . . . Core Remaining (%) 78 | 100 . 39 . . . 91 100 100 . . 45 . . . . 66 84 . . Volleys Fired 289 | 7 39 8 17 . . 21 24 . 21 3 . 11 33 8 12 9 23 52 1 Largest 4 | 1 2 2 3 . . 3 3 . 4 4 . 2 3 2 2 3 4 3 1 Hottest 186 | 20 60 40 66 . . 82 71 . 120 112 . 80 123 71 86 129 186 149 75 Shots Fired 563 | 7 78 16 36 . . 44 72 . 66 12 . 22 57 13 14 11 40 72 3 Gun 444 | 7 78 16 32 . . 38 72 . 60 12 . 22 41 8 . 5 20 30 3 Cannon 43 | . . . . . . . . . . . . . . . . . 5 38 . Launcher 76 | . . . 4 . . 6 . . 6 . . . 16 5 14 6 15 4 . Special . | . . . . . . . . . . . . . . . . . . . . Kinetic 354 | 7 71 16 32 . . 38 72 . 60 12 . . 7 8 . . 5 26 . Thermal 56 | . . . . . . . . . . . . 22 34 . . . . . . Explosive 46 | . . . 4 . . 6 . . 6 . . . . . 7 4 15 4 . Electromagnetic 40 | . 7 . . . . . . . . . . . 16 5 7 2 . . 3 Entropic 67 | . . . . . . . . . . . . . . . . 5 20 42 . Robot Hit Streak 28 | 3 5 5 8 . . 10 9 . 9 12 . 19 28 8 2 6 10 7 3 Robot Miss Streak 8 | 1 3 2 2 . . 4 5 . 4 1 . 1 3 2 1 2 2 8 . Penetration Max 1 | . . . . . . . . . 1 . . . . . . . . . . Secondary Targets 3 | . . . 2 . . . 1 . . . . . . . . . . . . Max Gunslinging Chain 2 | . . . 2 . . . 1 . . . . . . . . . . . . Shots Hit Robots 372 | 5 45 10 25 . . 30 32 . 37 9 . 20 44 8 4 7 24 45 27 Core Hits 256 | 2 21 4 17 . . 18 19 . 19 2 . 8 23 1 40 14 31 30 7 Critical Kills . | . . . . . . . . . . . . . . . . . . . . Critical Parts Destroyed 1 | . 1 . . . . . . . . . . . . . . . . . . Critical Strikes 13 | . 1 . . . . . . . . . . . . . . . 1 3 8 Destroy 1 | . 1 . . . . . . . . . . . . . . . . . . Blast 1 | . . . . . . . . . . . . . . . . . 1 . . Sever 8 | . . . . . . . . . . . . . . . . . . . 8 Sunder 3 | . . . . . . . . . . . . . . . . . . 3 . Melee Attacks 58 | . . . . . . . . . . . . . . . . . . 18 40 Impact . | . . . . . . . . . . . . . . . . . . . . Slashing 34 | . . . . . . . . . . . . . . . . . . . 34 Piercing 24 | . . . . . . . . . . . . . . . . . . 18 6 Sneak Attacks 3 | . . . . . . . . . . . . . . . . . . . 3 Combat Hostiles . | . . . . . . . . . . . . . . . . . . . . Follow-up Attacks . | . . . . . . . . . . . . . . . . . . . . Damage Inflicted 17067 | 59 506 116 876 . . 1081 552 . 1516 237 . 268 1358 180 2591 897 2802 2567 1461 Guns 5154 | 59 506 116 285 . . 410 530 . 663 237 . 264 460 79 . 140 644 706 55 Cannons 1265 | . . . . . . . . . . . . . . . . . 135 1130 . Explosions 8955 | . . . 591 . . 671 . . 853 . . . 898 101 2591 757 2023 470 . Melee 1654 | . . . . . . . . . . . . . . . . . . 248 1406 Ramming 39 | . . . . . . . 22 . . . . 4 . . . . . 13 . Kinetic 3399 | 59 435 116 285 . . 410 530 . 663 237 . . 86 79 . . 135 364 . Thermal 1520 | . . . 78 . . . . . 272 . . 264 533 . 233 . 140 . . Explosive 6327 | . . . 513 . . 671 . . 581 . . . . . 1723 486 1883 470 . Electromagnetic 1872 | . 71 . . . . . . . . . . . 739 101 635 271 . . 55 Impact . | . . . . . . . . . . . . . . . . . . . . Slashing 1406 | . . . . . . . . . . . . . . . . . . . 1406 Piercing 248 | . . . . . . . . . . . . . . . . . . 248 . Entropic 2256 | . . . . . . . . . . . . . . . . 140 644 1472 . Highest Corruption 28 | . . . . . . . 2 . . . . . 1 1 . . 1 21 28 Average Corruption 12 | . . . . . . . 2 . . . . . 1 1 . . 1 9 22 Corruption Purged 4 | . . . . . . . . . . . . . 2 1 . . 1 . . Corruption Blocked 1 | . . . . . . . . . . . . . . . . 1 . . . Effects 72 | . . . . . . . 2 . . . . . . . . . . 42 28 Message Errors 19 | . . . . . . . 1 . . . . . . . . . . 12 6 Matter Fused 15 | . . . . . . . . . . . . . . . . . . 10 5 Heat Flow Errors 7 | . . . . . . . . . . . . . . . . . . 3 4 Energy Discharges 5 | . . . . . . . 1 . . . . . . . . . . 2 2 Parts Rejected 1 | . . . . . . . . . . . . . . . . . . 1 . Parts Fused 1 | . . . . . . . . . . . . . . . . . . . 1 Data Loss (minor) 7 | . . . . . . . . . . . . . . . . . . 4 3 Data Loss (major) 1 | . . . . . . . . . . . . . . . . . . . 1 Misfires 5 | . . . . . . . . . . . . . . . . . . 3 2 Alerts 3 | . . . . . . . . . . . . . . . . . . . 3 Misdirections 7 | . . . . . . . . . . . . . . . . . . 6 1 Weapon Failures 1 | . . . . . . . . . . . . . . . . . . 1 . Overload Shots . | . . . . . . . . . . . . . . . . . . . . Overflow Damage 667 | . . . 77 . . 58 . . 2 . . . 6 16 35 10 156 234 73 Projectiles 259 | . . . . . . . . . . . . . . . . . 46 213 . Explosions 335 | . . . 77 . . 58 . . 2 . . . 6 16 35 10 110 21 . Melee 73 | . . . . . . . . . . . . . . . . . . . 73 Knockbacks 3 | . . . . . . . . . . . . . . . . . . 3 . Impact . | . . . . . . . . . . . . . . . . . . . . Kinetic 3 | . . . . . . . . . . . . . . . . . . 3 . Secondary . | . . . . . . . . . . . . . . . . . . . . Self-Inflicted Damage 281 | . . . 23 . . 73 . . 23 . . 2 41 99 . . . 20 . Shots 14 | . . . 1 . . 3 . . 1 . . . 3 5 . . . 1 . Rammed 2 | . . . . . . . . . . . . 1 . . . . . 1 . Targets Rammed 9 | . . . . . . . 1 . . . . 1 . . . . . 7 . Kicked 7 | . . . . . . . 1 . . . . . . . . . . 6 . Crushed . | . . . . . . . . . . . . . . . . . . . . Highest Temperature 545 | . 39 15 36 . . 117 120 . 545 153 . 42 329 7 84 93 94 442 220 Average Temperature 104 | . 18 7 13 . . 61 38 . 185 74 . 22 78 3 38 35 21 198 75 Received Heat Transfer 1641 | . 117 123 39 . . 117 90 . 284 . 12 117 243 36 12 6 33 160 252 Effects 13 | . . . . . . . . . 6 . . . . . . . . 7 . Shutdowns 2 | . . . . . . . . . 2 . . . . . . . . . . Energy Bleed 1 | . . . . . . . . . 1 . . . . . . . . . . Interference 9 | . . . . . . . . . 3 . . . . . . . . 6 . Matter Decay 1 | . . . . . . . . . . . . . . . . . . 1 . Siege Activations . | . . . . . . . . . . . . . . . . . . . . Robots Corrupted 4 | . . . . . . . . . . . . . 3 1 . . . . . Combat Hostiles 4 | . . . . . . . . . . . . . 3 1 . . . . . Parts Fried 4 | . . . . . . . . . . . . . 1 2 1 . . . . Impact Corruptions . | . . . . . . . . . . . . . . . . . . . . Robots Melted 3 | . . . . . . . . . . . . 2 1 . . . . . . Combat Hostiles 3 | . . . . . . . . . . . . 2 1 . . . . . . Parts Melted 6 | . . . . . . . . . . . . 4 1 . 1 . . . . Heat Transferred 2363 | . . . 50 . . . . . 150 . . 740 1173 . 200 . 50 . . Parts Sabotaged . | . . . . . . . . . . . . . . . . . . . . Parts Stolen . | . . . . . . . . . . . . . . . . . . . . Parts Stripped . | . . . . . . . . . . . . . . . . . . . . Power Chain Reactions 6 | . . . . . . . . . . . . . 2 1 3 . . . . Alert | -11 -10 -10 -9 -9 -9 -8 -8 -7 -6 -6 -6 -5 -5 -5 -5 -4 -4 -3 -3 ------- Run | Yrd Mat Min Mat Min Exi Min Mat Fac Fac Was Fac Fac Upp Upp War Pro Fac Res Tes Peak Influence 724 | 5 221 128 351 130 . 317 239 39 454 92 45 96 . . . . 724 504 410 Initial 379 | . 3 55 49 130 . . 45 39 18 92 15 21 . . . . 156 379 132 Average 246 | . 112 90 215 130 . 214 121 39 306 56 23 45 . . . . 507 384 283 Maximum Alert Level 3 | . 1 . 1 . . 1 1 . 2 . . . . . . . 3 2 2 Low Security (%) 42 | 100 90 100 38 100 . 42 75 100 12 100 100 100 . . . . 7 . 12 Level 1 36 | . 9 . 61 . . 57 24 . 37 . . . . . . . 3 68 82 Level 2 18 | . . . . . . . . . 50 . . . . . . . 65 31 4 Level 3 2 | . . . . . . . . . . . . . . . . . 22 . . Level 4 . | . . . . . . . . . . . . . . . . . . . . Level 5 . | . . . . . . . . . . . . . . . . . . . . High Security . | . . . . . . . . . . . . . . . . . . . . Max Security . | . . . . . . . . . . . . . . . . . . . . Squads Dispatched 21 | . 2 . . . . . . 1 1 . . 2 . . . . 3 7 5 Investigation 2 | . 1 . . . . . . . . . . 1 . . . . . . . Extermination 7 | . . . . . . . . 1 . . . 1 . . . . 1 3 1 Reinforcement 12 | . 1 . . . . . . . 1 . . . . . . . 2 4 4 Assault . | . . . . . . . . . . . . . . . . . . . . Garrison . | . . . . . . . . . . . . . . . . . . . . Intercept . | . . . . . . . . . . . . . . . . . . . . Searches Triggered . | . . . . . . . . . . . . . . . . . . . . Construction Impeded 2 | . . . . . . . . . . . . . . . . . 1 1 . Haulers Reinforced . | . . . . . . . . . . . . . . . . . . . . Active Scanning Responses . | . . . . . . . . . . . . . . . . . . . . Cargo Convoy Interrupts . | . . . . . . . . . . . . . . . . . . . . Stealth | -11 -10 -10 -9 -9 -9 -8 -8 -7 -6 -6 -6 -5 -5 -5 -5 -4 -4 -3 -3 --------- Run | Yrd Mat Min Mat Min Exi Min Mat Fac Fac Was Fac Fac Upp Upp War Pro Fac Res Tes Distress Signals 8 | . . . 1 . . . 1 . . . . . . . 1 . . 4 1 Communications Jammed . | . . . . . . . . . . . . . . . . . . . . Distress Signals . | . . . . . . . . . . . . . . . . . . . . Times Spotted 205 | . 16 5 18 . . 12 9 1 11 6 1 3 12 1 25 12 17 38 18 Peak Tracking Total 12 | . 3 4 3 . . 4 4 1 4 6 1 2 5 1 12 5 5 11 6 Tactical Retreats 8 | . 1 1 . . . . . . . . . . . . 1 . . 3 2 Traps | -11 -10 -10 -9 -9 -9 -8 -8 -7 -6 -6 -6 -5 -5 -5 -5 -4 -4 -3 -3 ------- Run | Yrd Mat Min Mat Min Exi Min Mat Fac Fac Was Fac Fac Upp Upp War Pro Fac Res Tes Traps Triggered 5 | . 1 . . . . . 1 . 1 . . 1 . . . . . . 1 Indirectly . | . . . . . . . . . . . . . . . . . . . . Trap Hack Attempts . | . . . . . . . . . . . . . . . . . . . . Triggered . | . . . . . . . . . . . . . . . . . . . . Disarmed . | . . . . . . . . . . . . . . . . . . . . Reprogrammed . | . . . . . . . . . . . . . . . . . . . . Reused . | . . . . . . . . . . . . . . . . . . . . Traps Extracted . | . . . . . . . . . . . . . . . . . . . . Installed . | . . . . . . . . . . . . . . . . . . . . Triggered 18 | . . . . . . . . . . . . . . . 17 1 . . . Machines | -11 -10 -10 -9 -9 -9 -8 -8 -7 -6 -6 -6 -5 -5 -5 -5 -4 -4 -3 -3 ---------- Run | Yrd Mat Min Mat Min Exi Min Mat Fac Fac Was Fac Fac Upp Upp War Pro Fac Res Tes Machines Disabled 24 | . . . 2 . . 1 1 . 11 . . . . . . . 5 . 4 Max in Single Turn 10 | . . . 2 . . 1 1 . 10 . . . . . . . 4 . 1 Garrison Access 2 | . . . . . . . 1 . . . . . . . . . 1 . . Machines Repaired . | . . . . . . . . . . . . . . . . . . . . Machines Dismantled . | . . . . . . . . . . . . . . . . . . . . Machines Sabotaged . | . . . . . . . . . . . . . . . . . . . . Overloaded Fab Kills . | . . . . . . . . . . . . . . . . . . . . Hacking | -11 -10 -10 -9 -9 -9 -8 -8 -7 -6 -6 -6 -5 -5 -5 -5 -4 -4 -3 -3 --------- Run | Yrd Mat Min Mat Min Exi Min Mat Fac Fac Was Fac Fac Upp Upp War Pro Fac Res Tes Machines Accessed 41 | . 6 . 5 . 1 . 4 3 5 . . 3 . . 1 . 5 3 5 Terminals 21 | . 4 . 5 . . . 2 1 3 . . 1 . . . . 1 2 2 Fabricators 5 | . . . . . . . . 1 1 . . . . . . . 2 . 1 Repair Stations 7 | . 1 . . . . . 1 1 1 . . 1 . . . . . . 2 Recycling Units 2 | . 1 . . . . . . . . . . 1 . . . . . . . Scanalyzers 1 | . . . . . . . . . . . . . . . . . 1 . . Garrison Access 3 | . . . . . . . 1 . . . . . . . . . 1 1 . Total Hacks 79 | . 15 . 13 . 1 . 8 6 5 . . 4 . . 1 . 11 3 12 Successful 25 | . 7 . 2 . 1 . 4 2 1 . . 1 . . 1 . 3 . 3 Failed 54 | . 8 . 11 . . . 4 4 4 . . 3 . . . . 8 3 9 Catastrophic 17 | . 2 . 2 . . . 1 1 2 . . 3 . . . . . 3 3 Database Lockouts . | . . . . . . . . . . . . . . . . . . . . Manual 54 | . 14 . 13 . . . 3 5 4 . . 2 . . . . 6 2 5 Terminals 44 | . 11 . 13 . . . 3 3 3 . . 1 . . . . 5 2 3 Fabricators 10 | . . . . . . . . 1 1 . . . . . . . 4 . 4 Repair Stations 15 | . 1 . . . . . 4 2 1 . . 2 . . . . . . 5 Recycling Units 4 | . 3 . . . . . . . . . . 1 . . . . . . . Scanalyzers 1 | . . . . . . . . . . . . . . . . . 1 . . Garrison Access 3 | . . . . . . . 1 . . . . . . . . . 1 1 . Terminal Hacks 9 | . 3 . 2 . 1 . . 1 . . . . . . 1 . . . 1 Record 2 | . . . . . 1 . . . . . . . . . . . . . 1 Robot Analysis 2 | . 2 . . . . . . . . . . . . . . . . . . Open Door 1 | . . . . . . . . . . . . . . . 1 . . . . Branch Access Points 1 | . . . 1 . . . . . . . . . . . . . . . . Terminal Index 1 | . . . 1 . . . . . . . . . . . . . . . . Locate Traps 1 | . . . . . . . . 1 . . . . . . . . . . . Registered Components 1 | . 1 . . . . . . . . . . . . . . . . . . Fabricator Hacks 3 | . . . . . . . . . 1 . . . . . . . 1 . 1 Network Status 3 | . . . . . . . . . 1 . . . . . . . 1 . 1 Repair Station Hacks 4 | . . . . . . . 3 . . . . 1 . . . . . . . Scan Component 2 | . . . . . . . 2 . . . . . . . . . . . . Repair 1 | . . . . . . . 1 . . . . . . . . . . . . Refit 1 | . . . . . . . . . . . . 1 . . . . . . . Recycling Unit Hacks 1 | . 1 . . . . . . . . . . . . . . . . . . Report Inventory 1 | . 1 . . . . . . . . . . . . . . . . . . Scanalyzer . | . . . . . . . . . . . . . . . . . . . . Garrison Access Hacks 2 | . . . . . . . 1 . . . . . . . . . 1 . . Seal Access 2 | . . . . . . . 1 . . . . . . . . . 1 . . Unauthorized Hacks 6 | . 3 . . . . . . 1 . . . . . . . . 1 . 1 Terminals 1 | . . . . . . . . . . . . . . . . . 1 . . Operators 1 | . . . . . . . . . . . . . . . . . 1 . . Fabricators 1 | . . . . . . . . . . . . . . . . . . . 1 Report 1 | . . . . . . . . . . . . . . . . . . . 1 Repair Stations 2 | . 1 . . . . . . 1 . . . . . . . . . . . Mechanics 2 | . 1 . . . . . . 1 . . . . . . . . . . . Recycling Units 2 | . 2 . . . . . . . . . . . . . . . . . . Monitor 1 | . 1 . . . . . . . . . . . . . . . . . . Recyclers 1 | . 1 . . . . . . . . . . . . . . . . . . Scanalyzers . | . . . . . . . . . . . . . . . . . . . . Garrison Access . | . . . . . . . . . . . . . . . . . . . . Data Cores Recovered 2 | . . . 2 . . . . . . . . . . . . . . . . Used . | . . . . . . . . . . . . . . . . . . . . Hacking Detections 32 | . 3 . 5 . . . 3 3 4 . . 3 . . . . 4 3 4 Full Trace Events . | . . . . . . . . . . . . . . . . . . . . Feedback Events . | . . . . . . . . . . . . . . . . . . . . Feedback Blocked . | . . . . . . . . . . . . . . . . . . . . Robot Schematics Acquired . | . . . . . . . . . . . . . . . . . . . . Robots Built . | . . . . . . . . . . . . . . . . . . . . Authchips . | . . . . . . . . . . . . . . . . . . . . Time . | . . . . . . . . . . . . . . . . . . . . Total Robot Build Rating . | . . . . . . . . . . . . . . . . . . . . Part Schematics Acquired . | . . . . . . . . . . . . . . . . . . . . Parts Built . | . . . . . . . . . . . . . . . . . . . . Authchips . | . . . . . . . . . . . . . . . . . . . . Time . | . . . . . . . . . . . . . . . . . . . . Total Part Build Rating . | . . . . . . . . . . . . . . . . . . . . Parts Repaired 1 | . . . . . . . 1 . . . . . . . . . . . . Time 32 | . . . . . . . 32 . . . . . . . . . . . . Parts Recycled . | . . . . . . . . . . . . . . . . . . . . Recycled Matter . | . . . . . . . . . . . . . . . . . . . . Retrieved Matter . | . . . . . . . . . . . . . . . . . . . . Retrieved Components . | . . . . . . . . . . . . . . . . . . . . Parts Scanalyzed . | . . . . . . . . . . . . . . . . . . . . Part Schematics Acquired . | . . . . . . . . . . . . . . . . . . . . Parts Damaged . | . . . . . . . . . . . . . . . . . . . . Bothacking | -11 -10 -10 -9 -9 -9 -8 -8 -7 -6 -6 -6 -5 -5 -5 -5 -4 -4 -3 -3 ------------ Run | Yrd Mat Min Mat Min Exi Min Mat Fac Fac Was Fac Fac Upp Upp War Pro Fac Res Tes Used RIF Installer . | . . . . . . . . . . . . . . . . . . . . Robots Hacked . | . . . . . . . . . . . . . . . . . . . . Non-combat . | . . . . . . . . . . . . . . . . . . . . Combat . | . . . . . . . . . . . . . . . . . . . . Robot Hacks Applied . | . . . . . . . . . . . . . . . . . . . . Relay Couplers Released . | . . . . . . . . . . . . . . . . . . . . Fabnet Peak Effective % . | . . . . . . . . . . . . . . . . . . . . Robots Rewired 5 | . . . . . . . . . . . . . . . 5 . . . . Allies Hacked . | . . . . . . . . . . . . . . . . . . . . Hacks Repelled . | . . . . . . . . . . . . . . . . . . . . Allies | -11 -10 -10 -9 -9 -9 -8 -8 -7 -6 -6 -6 -5 -5 -5 -5 -4 -4 -3 -3 -------- Run | Yrd Mat Min Mat Min Exi Min Mat Fac Fac Was Fac Fac Upp Upp War Pro Fac Res Tes Total Allies 10 | . . 5 . . . . . . . . . . . . 5 . . . . Largest Group 5 | . . 3 3 1 1 1 . . . . . . . . 5 2 1 . . Highest-Rated Group 286 | . . 69 69 16 16 16 . . . . . . . . 286 109 41 . . Highest-Rated Ally 68 | . . 31 31 16 16 16 . . . . . . . . 68 68 41 . . Total Orders 2 | . . . . . . . . . . . . 2 . . . . . . . EXPLORE 2 | . . . . . . . . . . . . 2 . . . . . . . Ally Attacks 102 | . . 15 30 . . 11 . . . . . . . . 30 14 2 . . Total Damage 3149 | . . 150 387 . . 169 . . . . . . . . 1606 745 92 . . Kills 24 | . . 2 6 . . 1 . . . . . . . . 11 4 . . . Allies Corrupted 2 | . . . . . . . . . . . . . . . 1 . 1 . . Allies Melted . | . . . . . . . . . . . . . . . . . . . . Intel | -11 -10 -10 -9 -9 -9 -8 -8 -7 -6 -6 -6 -5 -5 -5 -5 -4 -4 -3 -3 ------- Run | Yrd Mat Min Mat Min Exi Min Mat Fac Fac Was Fac Fac Upp Upp War Pro Fac Res Tes Robot Analysis Total 2 | . 2 . . . . . . . . . . . . . . . . . . Derelict Logs Recovered 4 | . . 1 . . . . . . . . . . 1 1 . 1 . . . Drone Launches 2 | . . . . . . . . . . . . 2 . . . . . . . Drone Recoveries 2 | . . . . . . . . . . . . 2 . . . . . . . Decoded 0b10 Intel 15 | . . . . . . . . . . . . . . . . . 15 . . Traps 2 | . . . . . . . . . . . . . . . . . 2 . . Emergency Access 3 | . . . . . . . . . . . . . . . . . 3 . . Items 8 | . . . . . . . . . . . . . . . . . 8 . . Machines 1 | . . . . . . . . . . . . . . . . . 1 . . Guards 1 | . . . . . . . . . . . . . . . . . 1 . . Exploration | -11 -10 -10 -9 -9 -9 -8 -8 -7 -6 -6 -6 -5 -5 -5 -5 -4 -4 -3 -3 ------------- Run | Yrd Mat Min Mat Min Exi Min Mat Fac Fac Was Fac Fac Upp Upp War Pro Fac Res Tes Turns Passed 9680 | 79 625 201 467 37 185 426 533 364 539 115 120 257 1561 340 1001 316 708 1274 532 Spaces Moved 6048 | 43 373 131 296 29 143 276 279 275 332 129 206 225 831 196 498 261 524 757 244 Core 532 | 2 . . . . . . . . . 98 206 23 . . . . . 149 54 Treads 1313 | . . . . . . . . . . . . . 496 196 428 . . 3 190 Legs 3795 | 41 373 131 296 29 143 276 279 275 332 31 . . 291 . 70 261 524 443 . Wheels 146 | . . . . . . . . . . . . . . . . . . 146 . Hover 246 | . . . . . . . . . . . . 202 44 . . . . . . Flight 16 | . . . . . . . . . . . . . . . . . . 16 . Fastest Speed 45 | 50 120 120 120 130 130 130 130 130 130 50 50 50 80 160 105 105 105 45 50 Average Speed 126 | 116 120 120 122 130 130 130 130 130 130 71 50 77 169 160 175 105 106 106 124 Slowest Speed 330 | 120 120 190 130 130 130 130 130 130 130 270 50 156 330 160 250 105 185 250 145 Overloaded Moves . | . . . . . . . . . . . . . . . . . . . . Propulsion Burnouts . | . . . . . . . . . . . . . . . . . . . . Robots Hopped . | . . . . . . . . . . . . . . . . . . . . Cave-ins Triggered . | . . . . . . . . . . . . . . . . . . . . Exploration Rate (%) 37 | 3 73 47 27 11 52 66 30 10 10 75 7 9 88 40 73 50 22 24 32 Regions Visited 19 Branch Regions 9 Pre-discovered Areas 1 | . . . . . 1 . . . . . . . . . . . . . . Known Exits Taken 5 | . . . 1 . . . . . . . . . . 1 1 . 1 1 . Unknown Exits Taken 12 | 1 1 1 . 1 1 1 1 1 . . 1 1 1 . . 1 . . . Scrap Searched 10 | . . 1 . . . 1 . . . . . . 3 2 . 3 . . . Spaces Dug 18 | . . . . . . . . . . . . . . . . . . 14 4 Terrain Destroyed 480 | . . . 54 . . 48 . . 42 . . . 13 3 52 63 145 56 4 Melee 11 | . . . . . . . . . . . . . . . . . . 7 4 Projectile 35 | . . . . . . . . . 2 . . . 1 . . 2 5 25 . AOE 434 | . . . 54 . . 48 . . 40 . . . 12 3 52 61 140 24 . Terrain Rammed . | . . . . . . . . . . . . . . . . . . . . Walls Destroyed . | . . . . . . . . . . . . . . . . . . . . Machines Disabled . | . . . . . . . . . . . . . . . . . . . . Actions | -11 -10 -10 -9 -9 -9 -8 -8 -7 -6 -6 -6 -5 -5 -5 -5 -4 -4 -3 -3 --------- Run | Yrd Mat Min Mat Min Exi Min Mat Fac Fac Was Fac Fac Upp Upp War Pro Fac Res Tes Total 7471 | 61 480 161 381 28 142 302 402 281 395 144 222 284 928 208 609 291 634 1128 390 Wait 646 | 2 47 7 29 . . 5 61 1 14 2 17 36 28 . 4 15 51 249 78 Move 6031 | 42 372 130 295 28 142 275 278 274 332 128 205 225 830 195 497 260 523 756 244 Hop . | . . . . . . . . . . . . . . . . . . . . Pick Up 63 | 2 10 2 11 . . . 7 2 8 1 . 1 4 1 4 . 4 5 1 Fast Attach 104 | 7 1 . 4 . . 1 9 1 2 1 . 7 15 3 7 1 10 18 17 Attach 40 | . 1 2 3 . . . 3 2 4 2 . 2 5 . 1 . 4 8 3 Detach 16 | . . 1 . . . . . 1 . 1 . . 4 . 1 1 2 3 2 Swap 45 | 1 3 6 5 . . . 4 . 5 2 . . 1 . 11 3 3 1 . Drop 111 | . 7 5 17 . . . 15 . 7 4 . 2 8 1 16 2 14 11 2 Fire 289 | 7 39 8 17 . . 21 24 . 21 3 . 11 33 8 12 9 23 52 1 Melee 58 | . . . . . . . . . . . . . . . . . . 18 40 Ram 1 | . . . . . . . . . . . . . . . . . . 1 . Kick 7 | . . . . . . . 1 . . . . . . . . . . 6 . Crush . | . . . . . . . . . . . . . . . . . . . . Escape Stasis 2 | . . . . . . . . . . . . . . . . . . . 2 Rewire 58 | . . . . . . . . . 2 . . . . . 56 . . . . Trap . | . . . . . . . . . . . . . . . . . . . . Miscellaneous . | . . . . . . . . . . . . . . . . . . . . Route ------- -11/Scrapyard -10/Materials (discovered 4 exits: *Mat x2 / [*Min x2]) -10/Mines -9/Materials (discovered 4 exits: *Min x2 / Sto x2) -9/Mines -9/Exiles -8/Mines -8/Materials -7/Factory -6/Factory -6/Waste -6/Factory -5/Factory -5/Upper Caves -5/Upper Caves -5/Warlord -4/Proximity Caves -4/Factory -3/Research -3/Testing History --------- Turn | Location | Event 4 | -11/Scrapyard | Discovered new exit (range 16) 80 | -11/Scrapyard | Entered Materials 213 | -10/Materials | Discovered new exit (range 14) 302 | -10/Materials | Build established: Mutant 619 | -10/Materials | Discovered new exit (range 9) 647 | -10/Materials | Discovered new exit (range 4) 699 | -10/Materials | Discovered new exit (range 5) 705 | -10/Materials | Entered Mines 787 | -10/Mines | Assisted by bots powering up and referring to "LRC-V3" 819 | -10/Mines | Core integrity fell below 50% 876 | -10/Mines | Learned Materials trap positions 885 | -10/Mines | Discovered new exit (range 5) 906 | -10/Mines | Entered Materials 906 | -9/Materials | Accompanied by 3 allies 906 | -9/Materials | Evolved 2 slots: Propulsion x1, Weapon x1 907 | -9/Materials | Loaded intel: 11 trap records 911 | -9/Materials | Led the pair of lost Derelicts to an unsafe place 1133 | -9/Materials | Identified exit to Mines 1133 | -9/Materials | Identified exit to Storage 1373 | -9/Materials | Entered Mines 1373 | -9/Mines | Accompanied by 1 ally 1405 | -9/Mines | Deemed a non-threat by the Exiles lab entrance 1405 | -9/Mines | Discovered new exit (range 5) 1410 | -9/Mines | Entered Exiles 1410 | -9/Exiles | Accompanied by 1 ally 1442 | -9/Exiles | Met 8R-AWN 1462 | -9/Exiles | Met EX-HEX 1516 | -9/Exiles | Met EX-BIN 1519 | -9/Exiles | Build established: Tank 1534 | -9/Exiles | Met EX-DEC 1539 | -9/Exiles | Learned location of Zion (-7) 1585 | -9/Exiles | Discovered new exit (range 10) 1595 | -9/Exiles | Entered Mines 1595 | -8/Mines | Accompanied by 1 ally 2011 | -8/Mines | Discovered new exit (range 9) 2021 | -8/Mines | Entered Materials 2021 | -8/Materials | Evolved 2 slots: Utility x1, Weapon x1 2176 | -8/Materials | Repaired Hvy. Assault Rifle 2534 | -8/Materials | Discovered new exit (range 15) 2554 | -8/Materials | Entered Factory 2554 | -7/Factory | Evolved 2 slots: Propulsion x1, Utility x1 2863 | -7/Factory | Discovered new exit (range 5) 2918 | -7/Factory | Entered another Factory area 2918 | -6/Factory | Evolved 2 slots: Power x1, Utility x1 3369 | -6/Factory | Spotted B-75 Beast 3457 | -6/Factory | Sucked down chute 3457 | -6/Factory | Entered Waste 3484 | -6/Waste | Spotted C-40 Crusher 3497 | -6/Waste | Spotted C-40 Crusher 3499 | -6/Waste | Crushed by Compactor (1 part destroyed) 3507 | -6/Waste | Spotted C-40 Crusher 3508 | -6/Waste | Crushed by Compactor (1 part destroyed, 1 dropped) 3509 | -6/Waste | Spotted C-40 Crusher 3509 | -6/Waste | Spotted C-40 Crusher 3510 | -6/Waste | Spotted C-40 Crusher 3511 | -6/Waste | Crushed by Compactor (0 parts destroyed, 2 dropped) 3514 | -6/Waste | Crushed by Compactor (1 part destroyed, 1 dropped) 3514 | -6/Waste | Crushed by Compactor (0 parts destroyed, 1 dropped) 3517 | -6/Waste | Crushed by Compactor (1 part destroyed, 1 dropped) 3520 | -6/Waste | Crushed by Compactor (1 part destroyed) 3551 | -6/Waste | Lost 7 parts (2n3u2w) 3566 | -6/Waste | Discovered new exit (range 12) 3572 | -6/Waste | Entered Factory 3686 | -6/Factory | Discovered new exit (range 11) 3689 | -6/Factory | Core integrity fell below 50% 3692 | -6/Factory | Entered another Factory area 3692 | -5/Factory | Evolved 2 slots: Utility x2 3805 | -5/Factory | Build established: Mutant 3927 | -5/Factory | Discovered new exit (range 16) 3949 | -5/Factory | Entered Upper Caves 3980 | -5/Upper Caves | Lost 3 parts (1p2n) 3982 | -5/Upper Caves | Learned Factory stockpile data 4187 | -5/Upper Caves | Attracted the attention of an 0b10 checkpoint 4544 | -5/Upper Caves | Build established: Tank 5286 | -5/Upper Caves | Discovered new exit (range 15) 5462 | -5/Upper Caves | Build established: Scavenger-Skirmisher 5510 | -5/Upper Caves | Entered another Upper Caves area 5596 | -5/Upper Caves | Spotted B-75 Beast 5760 | -5/Upper Caves | Learned Factory terminal intel 5761 | -5/Upper Caves | Discovered new exit (range 23) 5768 | -5/Upper Caves | Attracted the attention of an 0b10 checkpoint 5814 | -5/Upper Caves | Lost 5 parts (1p1n2u1w) 5849 | -5/Upper Caves | Identified exit to Warlord 5850 | -5/Upper Caves | Entered Warlord 5894 | -5/Warlord | Discovered new exit (range 24) 6145 | -5/Warlord | Build established: Derelict-Skirmisher 6328 | -5/Warlord | Met Warlord 6335 | -5/Warlord | Warlord's base attacked by MAIN.C 6403 | -5/Warlord | Found Prototype Energy Gun 6403 | -5/Warlord | Identified Vortex Rifle 6407 | -5/Warlord | Found Vortex Rifle 6416 | -5/Warlord | Found Prototype Energy Cannon 6420 | -5/Warlord | Found Prototype Energy Cannon 6421 | -5/Warlord | Identified Vortex Cannon (x2) 6685 | -5/Warlord | Warlord forces counterattacked 6703 | -5/Warlord | Spotted Striker 6713 | -5/Warlord | Spotted Executioner 6718 | -5/Warlord | Allies destroyed Executioner 6744 | -5/Warlord | Spotted Striker 6749 | -5/Warlord | Allies destroyed Striker 6756 | -5/Warlord | Spotted Striker 6786 | -5/Warlord | Destroyed Striker 6807 | -5/Warlord | Destroyed 12 combat bots 6813 | -5/Warlord | Lost 16 allies 6848 | -5/Warlord | Identified exit to Proximity Caves 6851 | -5/Warlord | Entered Proximity Caves 6851 | -4/Proximity Caves | Accompanied by 2 allies 6854 | -4/Proximity Caves | Attracted the attention of an 0b10 checkpoint 7156 | -4/Proximity Caves | Learned Research trap positions 7157 | -4/Proximity Caves | Discovered new exit (range 7) 7167 | -4/Proximity Caves | Entered Factory 7167 | -4/Factory | Accompanied by 1 ally 7167 | -4/Factory | Evolved 2 slots: Propulsion x2 7169 | -4/Factory | Loaded intel: 28 terminal locations 7189 | -4/Factory | Build established: Scavenger-Skirmisher 7273 | -4/Factory | Destroyed 10 combat bots 7658 | -4/Factory | Found Prototype Launcher 7658 | -4/Factory | Identified Com. Tesla Bomb Launcher 7665 | -4/Factory | Destroyed 7 combat bots 7822 | -4/Factory | Discovered new exit (range 8) 7834 | -4/Factory | Identified exit to Research 7875 | -4/Factory | Entered Research 7875 | -3/Research | Evolved 2 slots: Utility x2 7876 | -3/Research | Loaded intel: 65 trap records 7953 | -3/Research | Build established: Scavenger-Tank 7972 | -3/Research | Spotted B-86 Titan 8069 | -3/Research | Spotted B-86 Titan 8458 | -3/Research | System corruption reached 10% 9055 | -3/Research | Found Launcher Loader 9068 | -3/Research | Lost 20 parts (3p6n6u5w) 9070 | -3/Research | Core integrity fell below 50% 9133 | -3/Research | Core integrity fell below 20% 9137 | -3/Research | Discovered new exit (range 5) 9139 | -3/Research | Identified exit to Testing 9149 | -3/Research | Entered Testing 9157 | -3/Testing | Found Prototype Device 9157 | -3/Testing | Identified Exp. Thermal Shield 9184 | -3/Testing | Found Prototype Hackware 9184 | -3/Testing | Identified Ghost Barrier 9404 | -3/Testing | Found Prototype Device 9404 | -3/Testing | Identified AEGIS Remote Shield 9501 | -3/Testing | Build established: Hacker-Mutant 9662 | -3/Testing | Scanned by Researcher 9681 | -3/Testing | Destroyed by H-77 Assassin with Coil Gun Last Messages --------------- corruption cleaned. 09666_ Held in stasis. 09666_ C-55 Analyst is analyzing... 09670_ U-05 Engineer destroyed. 09670_ K-01 Serf collects debris. 09670_ Acquired 30 matter. 09671_ K-01 Serf held in stasis. 09672_ Slug penetrates Wall. 09673_ P-80 Master resets K-01 Serf, system corruption cleaned. 09673_ K-01 Serf collects debris. 09674_ Ghost Barrier destroyed. 09675_ Held in stasis. 09675_ ALERT: Hostiles spotted, dispatching reinforcements to Terminal T005. 09676_ P-80 Master Adv. Heat Sink severed. 09677_ K-01 Serf collects debris. 09678_ Imp. Antigrav System destroyed. 09679_ Held in stasis. 09679_ C-55 Analyst is analyzing... Map ----- +----------------------------------------------------+ | # #""" # #??????????????????? | | # #"R = + #??????????????????? | | ########## #""" ###""T""## #??????????????????? | | ?????????# #""" #?#"""""## #??????????????????? | | ?????????# # #?######## #??????????????????? | | ?????????? ########????????# #??????????????????? | | ?????????? ????????????????# #??????????????????? | | ?????????? ??? ????????????# #??????????????????? | | ????????? ? ??????????##+#####??????????????? | | ??????????? ?????????# ####???????????? | | ??????????? ????????# """#???????????? | | ###????????????# ????????# """#???????????? | | ???????????????# ???????# ! "#???????????? | | ???????????????# ######## "F"#???????????? | | ???????????????# u + """ """#???????????? | | ???????????????# h# """ ####???????????? | | ???????????????# + """ #??????????????? | | ???????????????# h # """ #??????????????? | | ???????????????########c # """ #??????????????? | | ??????????????????????#A # """ #??????????????? | | ??????????????????????#!= # """ #??????????????? | | ??????????????????????# *!k# #??????????????? | | ??????????????????????#!| k# #??????????????? | | ??????????????????????# ########??????????????? | | ??????????????????????+ #?????????????????????? | | ????????????????????? # @ #?????????????????????? | | ????????????????????? # p#?????????????????????? | | ???????????????????? ?# #?????????????????????? | | ???????????????????##?# #?????????????????????? | | ??????????????????????# #?????????????????????? | | ??????????????????????# #?????????????????????? | | ??????????????????????+ #?????????????????????? | | ??????????????????????# #?????????????????????? | | ??????????????????????# #?????????????????????? | | ??????????????????????# #?????????????????????? | | ??????????????????????# #?????????????????????? | | ??????????????????????# k#?????????????????????? | | ??????????????????????# #?????????????????????? | | ??????????????????????# #?????????????????????? | | ??????????????????????# ??????????????????????? | | ??????????????????????? ??????????????????????? | | ?????????????????????????????????????????????????? | | ?????????????????????????????????????????????????? | | ?????????????????????????????????????????????????? | | ?????????????????????????????????????????????????? | | ?????????????????????????????????????????????????? | | ?????????????????????????????????????????????????? | | ?????????????????????????????????????????????????? | | ?????????????????????????????????????????????????? | | ?????????????????????????????????????????????????? | +----------------------------------------------------+ Best States ------------- Heat Dissipation 65 Energy Generation 41 Energy Capacity 610 Matter Stores 300 Matter Capacity 300 Sight Range 16 Robot Scan Range 18 Terrain Scan Range 24 Terrain Scan Density 135 Jamming Range 12 Power Amplification 30 Additional Mass Support 9 Base Temperature (-) 200 Corruption Containment 8 Corruption Block 4 Armor Coverage 1200 Resistance: TH 30 Weapon Shielding 66 Evasion (%) 61 Target Analysis 8 Armor Integrity Analysis 40 Recoil Reduction 5 Energy Filtering 50 Particle Charging 30 Kinecelleration 30 Defensive Hacking 20 Item Schematics ----------------- None Robot Schematics ------------------ None Fabricated ------------ Nothing Alien Tech Used ----------------- None Achievements -------------- Gunslinger Challenges ------------ None Game ------ Seed EfficiencyScatterFalx Manual? 0 Play Time 01:50:47 Cumulative 96.4 hours Start 2024.04.19 @ 20:03:14 End 2024.04.20 @ 12:31:13 Sessions 5 Manual Loads 0 Difficulty Rogue Special Mode None Game No. 106 Rogue 101 Adventurer 5 Explorer 0 Win Type - Total 3 Types 2/0/0/1/0/0/0/0/0 Lore% 46 Gallery% 62 Achievement% 47 Wizard Run 0 Options --------- Layout 1 ASCII 0 Keyboard 0 Movement Mouse Keybinds 0 Fullscreen 1 Font 24/Terminus Map View 50x35 Zoom Use 0% Tactical HUD 1 Map Filters NONE Filters NONE Steam 1 RUN: e1e1a6b4-da2c-4fa0-9c54-ef8ffc8a30a5